fUST/lending_fUST_20250417
["ID","MTS","AMOUNT","RATE_DAILY","PERIOD"]
[358286490,1744896650867,-592.65,0.00021917,2]
[358286492,1744896650877,-500.0,0.00021917,2]
[358286494,1744896650887,-500.0,0.00021917,2]
[358286496,1744896650898,-151.0,0.00021917,2]
[358286498,1744896650908,-151.0,0.00021917,2]
[358286500,1744896650918,-500.0,0.00021917,2]
[358286502,1744896650929,-644.92,0.00021917,2]
[358286505,1744896650939,-500.0,0.00021917,2]
[358286507,1744896650950,-600.09,0.00021917,2]
[358286509,1744896650961,-764.99,0.00021917,2]
[358286511,1744896650970,-500.0,0.00021917,2]
[358286513,1744896650980,-500.0,0.00021917,2]
[358286515,1744896650990,-500.0,0.00021917,2]
[358286517,1744896651000,-512.85744044,0.00021917,2]
[358286519,1744896651011,-955.27,0.00021917,2]
[358286521,1744896651021,-500.0,0.00021917,2]
[358286523,1744896651031,-500.0,0.00021917,2]
[358286525,1744896651041,-573.51,0.00021917,2]
[358286528,1744896651052,-500.0,0.00021917,2]
[358286530,1744896651062,-2817.34,0.00021917,2]
[358286532,1744896651072,-500.0,0.00021917,2]
[358286534,1744896651081,-500.0,0.00021917,2]
[358286536,1744896651092,-8481.91,0.00021917,2]
[358286538,1744896651101,-500.0,0.00021917,2]
[358286540,1744896651112,-873.86,0.00021917,2]
[358286542,1744896651122,-886.94,0.00021917,2]
[358286544,1744896651133,-500.2424696,0.00021917,2]
[358286546,1744896651143,-501.26252326,0.00021917,2]
[358286548,1744896651154,-500.0,0.00021917,2]
[358286551,1744896651164,-500.0,0.00021917,2]
[358286553,1744896651175,-501.95577567,0.00021917,2]
[358286555,1744896651185,-1560.13,0.00021917,2]
[358286557,1744896651196,-500.0,0.00021917,2]
[358286559,1744896651206,-726.62,0.00021917,2]
[358286561,1744896651216,-500.0,0.00021917,2]
[358286563,1744896651227,-500.52992124,0.00021917,2]
[358286565,1744896651237,-500.0,0.00021917,2]
[358286567,1744896651248,-500.0,0.00021917,2]
[358286570,1744896651258,-500.0,0.00021917,2]
[358286572,1744896651269,-638.69,0.00021917,2]
[358286574,1744896651279,-500.0,0.00021917,2]
[358286576,1744896651289,-1440.72,0.00021917,2]
[358286578,1744896651301,-812.51,0.00021917,2]
[358286580,1744896651314,-512.91,0.00021917,2]
[358286582,1744896651325,-500.0,0.00021917,2]
[358286584,1744896651335,-193.96504698,0.00021917,2]
[358286587,1744896651348,-466.6458023,0.00021917,2]
[358286589,1744896651359,-367.33656965,0.00021917,2]
[358286591,1744896651369,-1259.28,0.00021917,2]
[358286593,1744896651379,-500.0,0.00021917,2]
[358286595,1744896651390,-493.88272639,0.00021917,2]
[358286597,1744896651400,-500.0,0.00021917,2]
[358286599,1744896651411,-181.58496703,0.00021917,2]
[358286601,1744896651421,-500.0,0.00021917,2]
[358286603,1744896651432,-500.0,0.00021917,2]
[358286605,1744896651442,-500.0,0.00021917,2]
[358286607,1744896651452,-500.0,0.00021917,2]
[358286609,1744896651462,-26684.84,0.00021917,2]
[358286611,1744896651471,-158.59085518,0.00021917,2]
[358286613,1744896651481,-1000.0,0.00021917,2]
[358286615,1744896651492,-675.87,0.00021917,2]
[358286617,1744896651503,-500.0,0.00021917,2]
[358286620,1744896651514,-500.0,0.00021917,2]
[358286622,1744896651525,-501.37351647,0.00021917,2]
[358286624,1744896651535,-648.48895122,0.00021917,2]
[358286626,1744896651544,-1191.62,0.00021917,2]
[358286628,1744896651553,-2589.02,0.00021917,2]
[358286630,1744896651563,-440.67487652,0.00021917,2]
[358286632,1744896651573,-1110.11,0.00021917,2]
[358286634,1744896651583,-500.0,0.00021917,2]
[358286636,1744896651593,-500.0,0.00021917,2]
[358286638,1744896651604,-704.18,0.00021917,2]
[358286640,1744896651615,-500.0,0.00021917,2]
[358286642,1744896651625,-615.62,0.00021917,2]
[358286644,1744896651635,-500.0,0.00021917,2]
[358286646,1744896651644,-500.0,0.00021917,2]
[358286648,1744896651654,-500.0,0.00021917,2]
[358286650,1744896651665,-808.03,0.00021917,2]
[358286652,1744896651674,-500.0,0.00021917,2]
[358286655,1744896651684,-500.0,0.00021917,2]
[358286657,1744896651695,-500.0,0.00021917,2]
[358286658,1744896651705,-500.0,0.00021917,2]
[358286661,1744896651716,-7164.59,0.00021917,2]
[358286663,1744896651726,-501.92,0.00021917,2]
[358286665,1744896651737,-500.0,0.00021917,2]
[358286667,1744896651747,-500.0,0.00021917,2]
[358286669,1744896651758,-500.0,0.00021917,2]
[358286671,1744896651768,-500.0,0.00021917,2]
[358286673,1744896651778,-500.0,0.00021917,2]
[358286674,1744896651788,-704.65,0.00021917,2]
[358286675,1744896651799,-500.0,0.00021917,2]
[358286676,1744896651810,-500.9357978,0.00021917,2]
[358286677,1744896651820,-353.89001048,0.00021917,2]
[358286678,1744896651831,-570.36,0.00021917,2]
[358286679,1744896651841,-663.28,0.00021917,2]
[358286680,1744896651851,-1431.66,0.00021917,2]
[358286681,1744896651864,-501.4501394,0.00021917,2]
[358286683,1744896651874,-300.9157503,0.00021918,2]
[358286686,1744896651885,-321.743834,0.00021918,2]
[358286688,1744896651895,-345.36443394,0.00021918,2]
[358286690,1744896651906,-160.0,0.00021941,2]
[358286692,1744896651916,-420.0,0.00021944,2]
[358286694,1744896651926,-160.0,0.00021956,2]
[358286696,1744896651936,-12556.6594983,0.00021956,2]
[358286698,1744896651946,-160.0,0.00021959,2]
[358286700,1744896651956,-420.29423865,0.00021959,2]
[358286702,1744896651967,-160.0,0.0002196,2]
[358286704,1744896651977,-160.0,0.0002196,2]
[358286706,1744896651987,-160.0,0.0002196,2]
[358286708,1744896651997,-160.0,0.0002196,2]
[358286710,1744896652008,-6902.49599261,0.00022,2]
[358286712,1744896652018,-78209.56211074,0.00022,2]
[358286714,1744896652028,-5000.0,0.00022,7]
[358286717,1744896652038,-420.0,0.00022049,2]
[358286719,1744896652048,-151.0,0.00022054,2]
[358286721,1744896652059,-151.0,0.00022054,2]
[358286723,1744896652070,-500.0,0.00022054,2]
[358286725,1744896652080,-151.0,0.00022054,2]
[358286727,1744896652091,-784.53872005,0.00022054,2]
[358286729,1744896652101,-179.76728871,0.00022091,2]
[358286731,1744896652111,-306.7055286,0.00022164,2]
[358286733,1744896652123,-506.93073299,0.00022173,2]
[358286735,1744896652133,-503.14085694,0.00022173,2]
[358286737,1744896652143,-500.0,0.00022173,2]
[358286739,1744896652152,-500.0,0.00022173,2]
[358286741,1744896652162,-500.0,0.00022173,2]
[358286743,1744896652173,-500.0,0.00022173,2]
[358286746,1744896652183,-502.41200216,0.00022173,2]
[358286748,1744896652194,-500.0,0.00022173,2]
[358286750,1744896652205,-501.81960361,0.00022173,2]
[358286752,1744896652216,-502.41602693,0.00022173,2]
[358286754,1744896652227,-500.0,0.00022173,2]
[358286756,1744896652237,-500.0,0.00022173,2]
[358286758,1744896652247,-500.0,0.00022173,2]
[358286760,1744896652258,-500.74804,0.00022173,2]
[358286762,1744896652268,-500.76894503,0.00022173,2]
[358286765,1744896652278,-500.0,0.00022173,2]
[358286767,1744896652288,-500.75220483,0.00022173,2]
[358286769,1744896652299,-500.0,0.00022173,2]
[358286771,1744896652313,-500.0,0.00022173,2]
[358286773,1744896652325,-500.0,0.00022173,2]
[358286776,1744896652335,-500.0,0.00022173,2]
[358286778,1744896652346,-502.06655944,0.00022173,2]
[358286780,1744896652356,-500.0,0.00022173,2]
[358286782,1744896652366,-500.0,0.00022173,2]
[358286784,1744896652376,-458.02528132,0.00022173,2]
[358286786,1744896652386,-500.0,0.00022173,2]
[358286788,1744896652396,-500.0,0.00022173,2]
[358286790,1744896652407,-500.0,0.00022173,2]
[358286792,1744896652417,-512.26477101,0.00022173,2]
[358286794,1744896652428,-500.0,0.00022173,2]
[358286796,1744896652438,-500.0,0.00022173,2]
[358286798,1744896652448,-500.0,0.00022173,2]
[358286800,1744896652458,-1558.694056,0.0002218,5]
[358286802,1744896652468,-174.61913355,0.00022191,2]
[358286804,1744896652478,-198.0,0.00022191,2]
[358286807,1744896652488,-200.23856635,0.00022191,2]
[358286809,1744896652498,-198.0,0.00022191,2]
[358286811,1744896652508,-500.0,0.00022191,2]
[358286813,1744896652519,-500.0,0.00022191,2]
[358286815,1744896652530,-510.98910065,0.00022191,2]
[358286817,1744896652540,-526.05,0.00022191,2]
[358286819,1744896652550,-500.0,0.00022191,2]
[358286821,1744896652560,-1073.71,0.00022191,2]
[358286823,1744896652570,-592.54,0.00022191,2]
[358286825,1744896652580,-500.0,0.00022191,2]
[358286827,1744896652590,-500.0,0.00022191,2]
[358286829,1744896652600,-1716.8,0.00022191,2]
[358286831,1744896652611,-1176.76,0.00022191,2]
[358286834,1744896652622,-500.0,0.00022191,2]
[358286836,1744896652632,-500.0,0.00022191,2]
[358286838,1744896652642,-500.0,0.00022191,2]
[358286840,1744896652653,-500.0,0.00022191,2]
[358286842,1744896652663,-500.0,0.00022191,2]
[358286844,1744896652674,-638.80707353,0.00022191,2]
[358286915,1744896653365,-179.05113875,0.00018414,2]
[358286942,1744896653613,-3.75828208,0.00018414,2]
[358286944,1744896653623,-500.0,0.00021917,2]
[358286947,1744896653633,-519.96,0.00021917,2]
[358286949,1744896653643,-350.16292647,0.00022191,2]
[358286951,1744896653653,-507.56,0.00022191,2]
[358286953,1744896653663,-500.0,0.00022191,2]
[358286955,1744896653672,-309.17361655,0.00022191,2]
[358286958,1744896653692,-190.82638345,0.00022191,2]
[358286960,1744896653702,-358.24746073,0.00022191,2]
[358286961,1744896653711,-500.0,0.00022191,2]
[358286962,1744896653721,-500.0,0.00022191,2]
[358286963,1744896653730,-558.11,0.00022191,2]
[358286964,1744896653739,-500.0,0.00022191,2]
[358286965,1744896653749,-500.0,0.00022191,2]
[358286966,1744896653759,-774.69,0.00022191,2]
[358286967,1744896653768,-651.79,0.00022191,2]
[358286968,1744896653777,-500.0,0.00022191,2]
[358286969,1744896653787,-500.0,0.00022191,2]
[358286971,1744896653797,-500.0,0.00022191,2]
[358286973,1744896653806,-500.0,0.00022191,2]
[358286975,1744896653817,-529.16490326,0.00022191,2]
[358286977,1744896653826,-732.35,0.00022191,2]
[358286979,1744896653836,-500.0,0.00022191,2]
[358286981,1744896653846,-500.0,0.00022191,2]
[358286983,1744896653855,-500.0,0.00022191,2]
[358286985,1744896653867,-744.41,0.00022191,2]
[358286987,1744896653877,-530.26,0.00022191,2]
[358286989,1744896653887,-500.0,0.00022191,2]
[358286991,1744896653897,-501.23,0.00022191,2]
[358286993,1744896653907,-500.0,0.00022191,2]
[358286996,1744896653917,-500.0,0.00022191,2]
[358286998,1744896653928,-500.0,0.00022191,2]
[358287000,1744896653938,-628.97674238,0.00022191,2]
[358287002,1744896653948,-763.02,0.00022191,2]
[358287004,1744896653959,-227.16678369,0.00022191,2]
[358287006,1744896653970,-500.0,0.00022191,2]
[358287008,1744896653980,-683.77,0.00022191,2]
[358287010,1744896653990,-500.0,0.00022191,2]
[358287012,1744896653999,-1600.16,0.00022191,2]
[358287014,1744896654009,-551.69,0.00022191,2]
[358287016,1744896654019,-741.17,0.00022191,2]
[358287018,1744896654029,-500.0,0.00022191,2]
[358287020,1744896654039,-500.0,0.00022191,2]
[358287022,1744896654050,-500.0,0.00022191,2]
[358287024,1744896654060,-500.0,0.00022191,2]
[358287026,1744896654069,-500.0,0.00022191,2]
[358287028,1744896654078,-557.72,0.00022191,2]
[358287030,1744896654088,-500.0,0.00022191,2]
[358287032,1744896654097,-705.63,0.00022191,2]
[358287034,1744896654107,-564.02,0.00022191,2]
[358287036,1744896654116,-500.0,0.00022191,2]
[358287038,1744896654126,-500.0,0.00022191,2]
[358287040,1744896654136,-500.0,0.00022191,2]
[358287042,1744896654145,-698.81,0.00022191,2]
[358287044,1744896654155,-500.0,0.00022191,2]
[358287046,1744896654165,-500.0,0.00022191,2]
[358287048,1744896654175,-679.87,0.00022191,2]
[358287050,1744896654185,-218.56101591,0.00022191,2]
[358287052,1744896654195,-500.0,0.00022191,2]
[358287055,1744896654205,-500.0,0.00022191,2]
[358287057,1744896654214,-1066.98,0.00022191,2]
[358287058,1744896654224,-500.0,0.00022191,2]
[358287061,1744896654234,-598.24,0.00022191,2]
[358287062,1744896654244,-500.0,0.00022191,2]
[358287064,1744896654254,-500.0,0.00022191,2]
[358287067,1744896654264,-737.82,0.00022191,2]
[358287068,1744896654273,-500.0,0.00022191,2]
[358287070,1744896654283,-500.0,0.00022191,2]
[358287072,1744896654292,-383.67,0.00022191,2]
[358287074,1744896654303,-511.62,0.00022191,2]
[358287076,1744896654316,-500.0,0.00022191,2]
[358287078,1744896654326,-1474.37,0.00022191,2]
[358287081,1744896654336,-500.0,0.00022191,2]
[358287083,1744896654346,-580.05,0.00022191,2]
[358287085,1744896654356,-500.0,0.00022191,2]
[358287087,1744896654367,-500.0,0.00022191,2]
[358287088,1744896654377,-501.86636348,0.00022191,2]
[358287091,1744896654388,-500.0,0.00022191,2]
[358287093,1744896654399,-1356.61,0.00022191,2]
[358287095,1744896654409,-977.99,0.00022191,2]
[358287097,1744896654419,-500.0,0.00022191,2]
[358287099,1744896654428,-847.99,0.00022191,2]
[358287101,1744896654438,-500.0,0.00022191,2]
[358287103,1744896654447,-500.0,0.00022191,2]
[358287105,1744896654457,-578.33,0.00022191,2]
[358287107,1744896654466,-500.0,0.00022191,2]
[358287109,1744896654476,-1004.18,0.00022191,2]
[358287111,1744896654485,-558.97,0.00022191,2]
[358287113,1744896654495,-500.0,0.00022191,2]
[358287115,1744896654505,-500.0,0.00022191,2]
[358287117,1744896654515,-500.0,0.00022191,2]
[358287119,1744896654525,-500.0,0.00022191,2]
[358287121,1744896654535,-577.64,0.00022191,2]
[358287123,1744896654544,-500.0,0.00022191,2]
[358287125,1744896654554,-500.0,0.00022191,2]
[358287127,1744896654563,-500.0,0.00022191,2]
[358287129,1744896654573,-1139.2,0.00022191,2]
[358287131,1744896654582,-500.0,0.00022191,2]
[358287133,1744896654592,-566.76,0.00022191,2]
[358287135,1744896654602,-500.0,0.00022191,2]
[358287137,1744896654612,-500.0,0.00022191,2]
[358287139,1744896654622,-815.52,0.00022191,2]
[358287141,1744896654631,-500.0,0.00022191,2]
[358287143,1744896654641,-500.0,0.00022191,2]
[358287145,1744896654651,-531.62,0.00022191,2]
[358287147,1744896654661,-500.0,0.00022191,2]
[358287149,1744896654670,-500.0,0.00022191,2]
[358287151,1744896654681,-1923.82,0.00022191,2]
[358287153,1744896654691,-1216.89569081,0.00022191,2]
[358287156,1744896654706,-32.62430919,0.00022191,2]
[358287158,1744896654716,-500.0,0.00022191,2]
[358287160,1744896654727,-500.0,0.00022191,2]
[358287162,1744896654738,-509.5626723,0.00022191,2]
[358287164,1744896654748,-500.0,0.00022191,2]
[358287166,1744896654758,-500.0,0.00022191,2]
[358287168,1744896654768,-966.17,0.00022191,2]
[358287171,1744896654778,-500.0,0.00022191,2]
[358287173,1744896654788,-1934.65,0.00022191,2]
[358287175,1744896654798,-500.0,0.00022191,2]
[358287177,1744896654808,-500.0,0.00022191,2]
[358287179,1744896654817,-500.0,0.00022191,2]
[358287181,1744896654829,-500.0,0.00022191,2]
[358287183,1744896654839,-459.35041895,0.00022191,2]
[358288092,1744897618444,-181.21267613,0.00019088,2]
[358288160,1744897687421,-200.74523906,0.000189,2]
[358288190,1744897805519,-158.66768843,0.00018711,2]
[358288236,1744897831774,-944.92739364,0.00018711,2]
[358288238,1744897831784,-468.72759377,0.000189,2]
[358288240,1744897831793,-159.26751281,0.00019772,2]
[358288242,1744897831802,-1196.79212261,0.00020379,2]
[358288244,1744897831811,-2054.1325052,0.00020529,2]
[358288246,1744897831820,-202.801863,0.0002075,2]
[358288248,1744897831829,-1328.16162573,0.0002099,2]
[358288250,1744897831838,-300.0,0.00021598,2]
[358288252,1744897831848,-160.0,0.00021657,2]
[358288255,1744897831857,-1889.36037497,0.00021753,2]
[358288258,1744897831869,-300.0,0.0002177,2]
[358288260,1744897831878,-160.0,0.00021771,2]
[358288262,1744897831886,-839.11004726,0.00021771,2]
[358288263,1744897831894,-420.29423865,0.00021771,2]
[358288266,1744897831903,-160.0,0.00021771,2]
[358288268,1744897831913,-160.0,0.00021771,2]
[358288270,1744897831921,-160.0,0.00021771,2]
[358288272,1744897831929,-12556.6594983,0.00021771,2]
[358288274,1744897831937,-300.0,0.00021814,2]
[358288276,1744897831945,-219.93332648,0.00021815,2]
[358288278,1744897831954,-500.0,0.00021815,2]
[358288279,1744897831961,-500.0,0.00021815,2]
[358288281,1744897831969,-500.0,0.00021815,2]
[358288283,1744897831978,-500.0,0.00021815,2]
[358288285,1744897831987,-500.0,0.00021815,2]
[358288286,1744897831995,-500.0,0.00021815,2]
[358288288,1744897832004,-500.0,0.00021815,2]
[358288291,1744897832013,-500.0,0.00021815,2]
[358288293,1744897832021,-500.0,0.00021815,2]
[358288295,1744897832031,-356.8444896,0.00021815,2]
[358288297,1744897832041,-500.0,0.00021815,2]
[358288299,1744897832050,-16929.76401142,0.00021816,2]
[358288304,1744897832096,-11815.98944986,0.00021816,2]
[358288393,1744897838039,-160.0,0.00021771,2]
[358288395,1744897838057,-6505.90312546,0.00021816,2]
[358288400,1744897838099,-4325.94482548,0.00021816,2]
[358288859,1744897842911,-371.7,0.00021816,2]
[358289136,1744897846000,-6943.1745624,0.00021816,2]
[358289138,1744897846010,-402.0,0.00021853,2]
[358289140,1744897846019,-349.5916709,0.00021858,2]
[358289142,1744897846029,-151.0,0.00021904,2]
[358289144,1744897846039,-207.4,0.00021904,2]
[358289146,1744897846049,-297.67039038,0.00021916,2]
[358289148,1744897846058,-500.0,0.00021917,2]
[358289150,1744897846067,-500.0,0.00021917,2]
[358289152,1744897846076,-500.0,0.00021917,2]
[358289154,1744897846085,-500.0,0.00021917,2]
[358289156,1744897846095,-246.4,0.00021917,2]
[358289158,1744897846104,-345.37,0.00021917,2]
[358289160,1744897846114,-500.0,0.00021917,2]
[358289162,1744897846124,-500.0,0.00021917,2]
[358289163,1744897846134,-500.0,0.00021917,2]
[358289165,1744897846144,-500.0,0.00021917,2]
[358289166,1744897846153,-500.0,0.00021917,2]
[358289168,1744897846162,-500.0,0.00021917,2]
[358289186,1744897846374,-500.0,0.00021917,2]
[358289188,1744897846384,-500.0,0.00021917,2]
[358289190,1744897846394,-500.0,0.00021917,2]
[358289192,1744897846404,-1363.93,0.00021917,2]
[358289194,1744897846414,-500.0,0.00021917,2]
[358289196,1744897846423,-500.0,0.00021917,2]
[358289198,1744897846433,-500.0,0.00021917,2]
[358289200,1744897846443,-500.0,0.00021917,2]
[358289202,1744897846452,-500.0,0.00021917,2]
[358289204,1744897846462,-500.0,0.00021917,2]
[358289206,1744897846471,-500.0,0.00021917,2]
[358289208,1744897846483,-500.0,0.00021917,2]
[358289210,1744897846492,-584.69,0.00021917,2]
[358289212,1744897846502,-594.97,0.00021917,2]
[358289214,1744897846512,-500.0,0.00021917,2]
[358289217,1744897846522,-500.0,0.00021917,2]
[358289219,1744897846532,-501.49194462,0.00021917,2]
[358289221,1744897846542,-639.62422491,0.00021917,2]
[358289223,1744897846552,-500.0,0.00021917,2]
[358289225,1744897846561,-512.17,0.00021917,2]
[358289227,1744897846572,-500.0,0.00021917,2]
[358289229,1744897846581,-525.66,0.00021917,2]
[358289231,1744897846591,-512.38,0.00021917,2]
[358289233,1744897846600,-500.0,0.00021917,2]
[358289235,1744897846610,-500.0,0.00021917,2]
[358289237,1744897846620,-565.62,0.00021917,2]
[358289239,1744897846629,-517.68785237,0.00021917,2]
[358289241,1744897846640,-500.0,0.00021917,2]
[358289243,1744897846649,-500.0,0.00021917,2]
[358289245,1744897846659,-500.0,0.00021917,2]
[358289247,1744897846669,-500.0,0.00021917,2]
[358289249,1744897846680,-680.02,0.00021917,2]
[358289251,1744897846689,-500.0,0.00021917,2]
[358289253,1744897846699,-500.0,0.00021917,2]
[358289255,1744897846708,-500.0,0.00021917,2]
[358289257,1744897846719,-541.6,0.00021917,2]
[358289259,1744897846728,-500.0,0.00021917,2]
[358289261,1744897846738,-654.03,0.00021917,2]
[358289263,1744897846747,-500.0,0.00021917,2]
[358289265,1744897846758,-500.0,0.00021917,2]
[358289267,1744897846767,-500.0,0.00021917,2]
[358289269,1744897846777,-500.0,0.00021917,2]
[358289271,1744897846786,-500.0,0.00021917,2]
[358289273,1744897846796,-500.0,0.00021917,2]
[358289275,1744897846805,-500.0,0.00021917,2]
[358289277,1744897846814,-500.0,0.00021917,2]
[358289279,1744897846824,-365.56309803,0.00021917,2]
[358289281,1744897846833,-184.39432661,0.00021917,2]
[358289283,1744897846843,-500.0,0.00021917,2]
[358289285,1744897846852,-500.0,0.00021917,2]
[358289287,1744897846861,-500.3,0.00021917,2]
[358289289,1744897846872,-500.0,0.00021917,2]
[358289291,1744897846881,-500.0,0.00021917,2]
[358289293,1744897846891,-500.0,0.00021917,2]
[358289295,1744897846900,-268.36253891,0.00021917,2]
[358289298,1744897846919,-231.63746109,0.00021917,2]
[358289300,1744897846928,-469.75622449,0.00021917,2]
[358290342,1744899032322,-1750.93184233,0.00018659,2]
[358290343,1744899032332,-500.0,0.00019423,2]
[358290344,1744899032342,-446.31522189,0.00019817,2]
[358290345,1744899032351,-5985.40223065,0.0002,2]
[358290346,1744899032360,-202.8018645,0.0002086,2]
[358290347,1744899032369,-300.0,0.00021802,2]
[358290348,1744899032379,-300.0,0.00021803,2]
[358290349,1744899032388,-928.30152499,0.00021804,2]
[358290350,1744899032399,-1037.0738987,0.00021804,2]
[358290351,1744899032409,-420.29423865,0.00021813,2]
[358290352,1744899032418,-160.0,0.00021813,2]
[358290353,1744899032428,-3388.93472978,0.00021817,2]
[358290355,1744899032437,-7509.25811644,0.00021817,2]
[358290357,1744899032446,-1002.69711894,0.00021899,2]
[358290358,1744899032456,-500.0,0.00021899,2]
[358290359,1744899032468,-500.0,0.00021899,2]
[358290362,1744899032479,-500.0,0.00021899,2]
[358290364,1744899032488,-503.92903462,0.00021899,2]
[358290366,1744899032498,-16.40152504,0.00021899,2]
[358290368,1744899032511,-483.59847496,0.00021899,2]
[358290370,1744899032520,-500.0,0.00021899,2]
[358290372,1744899032529,-12.36773158,0.00021899,2]
[358290374,1744899032542,-487.63226842,0.00021899,2]
[358290376,1744899032552,-500.0,0.00021899,2]
[358290378,1744899032562,-678.81773158,0.000219,2]
[358290399,1744899038394,-160.0,0.00021813,2]
[358290400,1744899038405,-681.37,0.000219,2]
[358290401,1744899038417,-3074.02753986,0.000219,2]
[358290552,1744899046352,-500.0,0.00021899,2]
[358290554,1744899046362,-2.13451093,0.000219,2]
[358293515,1744899842886,1047.15824454,0.0001801,2]
[358293523,1744900005212,188.0,0.00018,2]
[358293593,1744900232224,-300.0,0.00018252,2]
[358293595,1744900232236,-300.0,0.00018252,2]
[358293597,1744900232248,-6544.29643424,0.00018253,2]
[358293599,1744900232264,-1010.82051747,0.00018253,2]
[358293602,1744900232285,-17344.88304829,0.00018253,2]
[358293604,1744900232297,-2837.2764544,0.0001847,2]
[358293606,1744900232309,-810.1475766,0.00018549,2]
[358293608,1744900232321,-39235.1246495,0.00018645,2]
[358293610,1744900232333,-4217.31858085,0.00018645,3]
[358293612,1744900232345,-320.67080155,0.00018646,2]
[358293614,1744900232356,-5869.97185207,0.00018647,2]
[358293616,1744900232367,-194.4696633,0.00018649,2]
[358293618,1744900232378,-598.98553581,0.00018699,2]
[358293619,1744900232389,-186.1187215,0.00018699,2]
[358293620,1744900232400,-152.60065718,0.000187,2]
[358293621,1744900232410,-503.33881337,0.000187,2]
[358293622,1744900232420,-500.01363245,0.000187,2]
[358293623,1744900232430,-253.79571694,0.000187,2]
[358293624,1744900232442,-500.0,0.000187,2]
[358293625,1744900232452,-542.55119703,0.000187,2]
[358293626,1744900232462,-509.37,0.000187,2]
[358293627,1744900232480,-500.67410755,0.000187,2]
[358293628,1744900232490,-502.33006453,0.000187,2]
[358293629,1744900232501,-506.90695136,0.000187,2]
[358293630,1744900232512,-500.0,0.000187,2]
[358293631,1744900232522,-500.0,0.000187,2]
[358293632,1744900232531,-501.98168086,0.000187,2]
[358293633,1744900232541,-499.64,0.000187,2]
[358293634,1744900232551,-500.0,0.000187,2]
[358293635,1744900232561,-500.97274281,0.000187,2]
[358293636,1744900232570,-500.0,0.000187,2]
[358293637,1744900232581,-269.83241215,0.000187,2]
[358293638,1744900232590,-500.0,0.000187,2]
[358293639,1744900232602,-500.0,0.000187,2]
[358293640,1744900232612,-500.0,0.000187,2]
[358293641,1744900232621,-500.0,0.000187,2]
[358293642,1744900232631,-500.0,0.000187,2]
[358293643,1744900232640,-500.0,0.000187,2]
[358293644,1744900232650,-500.0,0.000187,2]
[358293645,1744900232660,-456.510676,0.000187,2]
[358293646,1744900232670,-500.0,0.000187,2]
[358293647,1744900232681,-500.0,0.000187,2]
[358293648,1744900232693,-500.0,0.000187,2]
[358293649,1744900232703,-500.0,0.000187,2]
[358293650,1744900232713,-501.18585351,0.000187,2]
[358293651,1744900232726,-500.0,0.000187,2]
[358293652,1744900232736,-516.62220641,0.000187,2]
[358293653,1744900232746,-250.0,0.00018747,2]
[358293654,1744900232756,-2153.66784241,0.000189,2]
[358293655,1744900232767,-3209.2813042,0.00018924,2]
[358293656,1744900232776,-158.8430752,0.00019177,4]
[358293657,1744900232787,-486.69255867,0.00019898,2]
[358293658,1744900232796,-420.0,0.0001991,2]
[358293659,1744900232807,-151.0,0.00019988,2]